{"text_format":"1","workbook":"xlsx","n_sheets":5,"sheets":["1 Försättssida","2 Specifikation","3 Avtalstecknande","Admin","SysAdmin"],"not_rendered":{"charts":0,"images":0,"macros":1,"external_links":1,"defined_names":61,"comments":0,"pivot_tables":0},"unopened":[],"bounds":{"document_bytes":16777216,"sheet_cells":100000,"rows_first":2000,"rows_last":500,"rows_between":2000,"halvings":0,"cell_chars":16384,"cell_head_chars":4096},"cells_cut":0,"cells_raw":0,"read":"whole","date_system":"1900"}

{"sheet":"1 Försättssida","index":0,"n_rows":24,"n_cols":1,"rows_kept":24,"cut":false,"hidden":false,"merged":[]}
[]
[]
[]
[]
[]
[]
[]
[]
[]
[]
[]
["Avropsförfrågan - Förnyad konkurrensutsättning "]
["från Statens inköpscentrals ramavtal inom området "]
["stora konferenser och möten"]
[]
["96-xx-201x"]
[]
[]
[]
[]
["Avropsblankett"]
[]
[{"$f":"MID(CELL(\"filename\",A1),FIND(\"[\",CELL(\"filename\",A1))+1,FIND(\"]\",CELL(\"filename\",A1))-FIND(\"[\",CELL(\"filename\",A1))-1)","v":"Avropsblankett---stora-konferenser-och-moten-07.xlsm"}]
[{"$f":"MID(A23,SEARCH(\"(\",A23)+1,SEARCH(\")\",A23)-SEARCH(\"(\",A23)-1)","v":{"$error":"#VALUE!"}}]

{"sheet":"2 Specifikation","index":1,"n_rows":177,"n_cols":33,"rows_kept":177,"cut":false,"hidden":false,"merged":[[170,1,172,8],[75,5,75,8],[168,1,168,8],[76,3,76,4],[76,5,76,8],[83,1,83,2],[88,1,88,2],[84,1,84,2],[141,1,141,8],[163,1,163,8],[82,3,82,4],[82,5,82,8],[83,3,83,4],[125,1,125,8],[126,1,126,8],[85,3,85,4],[85,5,85,8],[79,3,79,4],[132,1,132,8],[135,1,135,8],[136,1,136,8],[75,1,75,2],[81,5,81,8],[75,3,75,4],[38,22,38,23],[39,22,39,23],[40,22,40,23],[83,5,83,8],[66,4,66,8],[77,1,77,2],[78,1,78,2],[79,1,79,2],[77,3,77,4],[77,5,77,8],[78,3,78,4],[78,5,78,8],[42,20,42,21],[43,2,43,4],[42,14,42,19],[42,22,42,23],[68,10,71,12],[42,5,42,6],[41,20,41,21],[36,22,36,23],[37,22,37,23],[53,14,53,19],[38,2,38,4],[53,22,53,23],[53,3,53,9],[46,22,46,23],[48,22,48,23],[51,20,51,21],[51,22,51,23],[52,20,52,21],[52,22,52,23],[51,14,51,19],[52,14,52,19],[51,3,51,9],[52,3,52,9],[44,2,44,4],[45,2,45,4],[40,20,40,21],[38,20,38,21],[39,14,39,19],[39,20,39,21],[8,20,8,21],[9,1,9,3],[9,4,9,6],[16,4,16,8],[16,17,16,21],[16,14,16,16],[23,3,23,4],[12,18,12,19],[14,14,14,16],[10,14,10,17],[10,18,10,21],[9,7,9,8],[9,14,9,17],[9,18,9,21],[8,14,8,19],[11,14,11,17],[23,1,23,2],[10,1,10,3],[11,1,11,3],[14,17,14,19],[15,14,15,16],[8,1,8,6],[8,7,8,8],[22,1,22,2],[2,1,2,4],[2,14,2,16],[2,18,2,21],[3,1,4,8],[3,14,4,21],[7,1,7,6],[7,7,7,8],[7,14,7,19],[7,20,7,21],[5,1,5,8],[6,1,6,8],[10,4,10,6],[10,7,10,8],[13,1,13,3],[13,4,13,6],[12,7,12,8],[11,4,11,6],[11,7,11,8],[11,18,11,19],[11,20,11,21],[13,7,13,8],[176,18,176,21],[173,14,174,21],[170,14,170,21],[169,14,169,21],[172,14,172,21],[168,14,168,21],[135,14,135,17],[95,17,96,18],[100,19,100,20],[111,17,111,18],[118,19,118,20],[115,16,116,18],[112,19,112,20],[98,19,98,20],[117,17,117,18],[99,19,99,20],[35,14,35,18],[37,2,37,4],[34,14,34,15],[36,14,36,19],[76,1,76,2],[22,3,22,4],[22,6,22,8],[29,6,29,7],[39,2,39,4],[36,20,36,21],[37,20,37,21],[25,1,25,2],[38,14,38,19],[26,3,26,4],[35,1,35,5],[25,3,25,4],[28,1,28,2],[28,3,28,4],[28,6,28,7],[36,2,36,4],[37,14,37,19],[26,1,26,2],[37,5,37,6],[37,7,37,10],[38,5,38,6],[39,5,39,6],[39,7,39,10],[34,1,34,11],[46,20,46,21],[43,22,43,23],[42,2,42,4],[41,2,41,4],[41,14,41,19],[40,14,40,19],[40,2,40,4],[41,22,41,23],[45,20,45,21],[45,14,45,19],[44,22,44,23],[45,22,45,23],[44,14,44,19],[44,20,44,21],[43,14,43,19],[43,20,43,21],[42,7,42,10],[43,5,43,6],[43,7,43,10],[44,5,44,6],[44,7,44,10],[46,14,46,19],[40,5,40,6],[40,7,40,10],[41,5,41,6],[41,7,41,10],[12,20,12,21],[13,20,13,21],[14,20,14,21],[19,1,19,8],[15,1,15,3],[14,1,14,3],[12,4,12,6],[36,5,36,6],[36,7,36,10],[19,14,19,21],[23,6,23,8],[29,1,29,2],[29,3,29,4],[15,4,15,8],[15,17,15,21],[16,1,16,3],[12,1,12,3],[13,14,13,16],[13,17,13,19],[38,7,38,10],[12,14,12,17],[14,7,14,8],[14,4,14,6],[97,19,97,20],[95,19,96,20],[89,11,89,12],[83,15,83,22],[88,18,88,19],[80,3,80,4],[77,15,77,22],[78,11,78,12],[78,15,78,22],[95,15,96,15],[96,10,96,11],[76,15,76,22],[77,11,77,12],[85,11,85,12],[85,15,85,22],[82,11,82,12],[82,15,82,22],[81,3,81,4],[83,11,83,12],[84,11,84,12],[79,5,79,8],[45,5,45,6],[45,7,45,10],[114,19,114,20],[105,16,106,17],[98,17,98,18],[111,1,111,12],[125,22,165,26],[114,17,114,18],[95,21,96,22],[142,1,142,8],[106,24,106,26],[97,21,99,22],[141,14,141,17],[95,16,96,16],[123,1,123,8],[111,19,111,20],[97,17,97,18],[121,1,121,5],[117,19,117,20],[112,1,118,12],[123,14,123,17],[113,17,113,18],[124,1,124,8],[113,19,113,20],[99,17,99,18],[137,1,137,8],[129,1,129,8],[129,14,129,17],[166,14,167,21],[160,14,160,21],[161,14,161,21],[162,14,162,21],[163,14,163,21],[147,1,147,8],[148,1,157,8],[160,1,160,8],[161,1,161,8],[162,1,162,8],[130,1,130,8],[131,1,131,8],[143,1,143,8],[144,1,144,8],[138,1,138,8],[103,14,103,15],[103,16,103,17],[104,1,106,12],[92,17,94,22],[92,16,94,16],[92,14,94,15],[88,21,88,22],[88,16,88,17],[87,11,87,12],[88,11,88,12],[97,10,97,11],[98,1,98,3],[100,17,100,18],[57,22,57,23],[66,1,66,3],[68,1,68,8],[61,10,65,12],[85,1,85,2],[82,1,82,2],[81,1,81,2],[84,3,84,4],[84,5,84,8],[80,11,80,12],[81,15,81,22],[84,15,84,22],[80,5,80,8],[79,11,79,12],[79,15,79,22],[80,15,80,22],[81,11,81,12],[80,1,80,2],[75,15,75,22],[72,9,74,9],[75,11,75,12],[76,11,76,12],[46,5,46,6],[46,7,46,10],[55,22,55,23],[74,1,74,2],[72,10,73,12],[73,1,73,5],[61,1,61,8],[64,1,64,8],[71,1,71,8],[46,2,46,4],[53,20,53,21],[70,1,70,3],[62,1,62,3],[63,1,63,8],[57,1,57,5],[58,19,58,21]]}
[]
[null,null,null,null,null,null,null,null,null,null,null,null,null,{"$f":"\"Avrop nr: \"&E15","v":"Avrop nr: xxxx"},null,null,null,null,null,null,null,{"$f":"\"Avrop nr: \"&L15","v":"Avrop nr: "},null,null,null,null,null,{"$f":"\"Avrop nr: \"&E15","v":"Avrop nr: xxxx"}]
[null,"Avropsförfrågan",null,null,null,null,null,null,null,null,null,null,null,null,"Avropssvar",null,null,null,{"$f":"IF(LarmStatus,\"Minst ett av de obligatoriska kraven är inte ifyllda eller besvarade med Nej\",\"\")","v":"Minst ett av de obligatoriska kraven är inte ifyllda eller besvarade med Nej"},null,null,null,null,null,null,null,null,null,null,null,null,null,{"$f":"OR(AG4:AG822)","v":true}]
[null,"Instruktion till avropande organisation: \nSpara ned blanketten på din dator.\nGulmarkerade rutor fylls i av avropare innan blanketten skickas.\n\nBlanketten skickas med e-post till antagna leverantörer inom aktuellt avropsområde.\nSe vidare \"Vägledning vid avrop\".",null,null,null,null,null,null,null,null,null,null,null,null,"Instruktion till leverantör:\nBlåmarkerade rutor fylls i av leverantören.\nLäs och kontrollera obligatoriska krav.\nReturnera blanketten med e-post till avropande organisation (oavsett Ja eller Nej)."]
[]
[null,"Steg 1 - Administrativa uppgifter"]
[null,"Uppgifter om avropande organisation",null,null,null,null,null,null,null,null,null,null,null,null,"Uppgifter om Ramavtalsleverantören"]
[null,"Myndighet/Organisation (namn)",null,null,null,null,null,"Organisationsnummer",null,null,null,null,null,null,"Ramavtalsleverantörens namn",null,null,null,null,null,"Organisationsnummer"]
[]
[null,"Postadress",null,null,"Postnummer",null,null,"Ort",null,null,null,null,null,null,"Kontaktperson",null,null,null,"E-post"]
[]
[null,"Avdelning, enhet etc",null,null,"Fakturaref.",null,null,"Mottagare för E-faktura",null,null,null,null,null,null,"Postadress",null,null,null,"Postnummer",null,"Ort"]
[]
[null,"Kontaktperson",null,null,"Referens/diarienr för avropet",null,null,"Ev. kundnummer",null,null,null,null,null,null,"Telefon",null,null,"Ramavtalsnummer",null,null,"Offertnummer el likn för detta avropssvar"]
[null,null,null,null,"xxxx"]
[null,"Telefon",null,null,"E-post",null,null,null,null,null,null,null,null,null,"Avropssvar lämnas Ja/Nej",null,null,"Om Nej, motivering\n(Information ska även skickas till statens inköpscentral)"]
[null,null,null,null,"     ",null,null,null,null,null,null,null,null,null,null,null,null,null,null,null,null,null,null,null,null,null,null,null,null,null,null,null,{"$f":"IF(AND(O17=0,O17<>\"Ja\"),TRUE,FALSE)","v":true}]
[]
[null,"Information om avropet t ex syfte och omfattning",null,null,null,null,null,null,null,null,null,null,null,null,"Uppgifter om underleverantör/återförsäljare (om aktuellt)"]
[]
[]
[null,null,"Obs att tidsfristen måste vara skälig med hänsyn till avropets karaktär."]
[null,"Sista datum för frågor",null,"Sista datum för \nsvar på frågor",null,null,"E-post för frågor (om annan än ovan)"]
[]
[]
[null,"Sista dag för avropssvar",null,"Avropssvarets giltighetstid"]
[]
[]
[null,"Kontraktets längd: antal månader",null,"Förlängningsoption:\nAntal månader",null,null,"Planerat startdatum för kontraktet"]
[]
[]
[null,"Ange vilket delområde avropet avser "]
[null,"> 150 personer"]
[]
[null,"Steg 2 - Specifikation av tjänster (OBS! Vid flerdagskonferens specificeras alla tjänster per dag.)",null,null,null,null,null,null,null,null,null,null,null,null,"Leverantörens svar"]
[]
[null,"Tjänst nr","Välj i lista\nÖvriga tjänster beskrivs i kolumn \"Övrig information\"\nOBS! Varje tjänst kan väljas flera gånger.",null,null,"Antal personer",null,"Övrig information",null,null,null,"Datum\nOmfattning specificeras under \"Övrig information\"",null,null,"Specificera tjänster nedan alternativt skriv \"enligt bilaga\" och bifoga en bilaga med specifikation av tjänster.\nOm produkter/tjänster på respektive rad specificeras ytterligare i bilaga, ange bilagenumret i specifikationen nedan.",null,null,null,null,null,"Pris per enhet\nOm avr. org. lämnat specifikation i bilaga lämnas pris för hela bilagan.\n(priset ska anges exkl moms)",null,"Pris totalt"]
[null,"01.","Välj tjänst",null,null,null,null,null,null,null,null,null,null,null,null,null,null,null,null,null,null,null,{"$f":"U38*F38","v":0},null,null,null,null,false]
[null,"02.",null,null,null,null,null,null,null,null,null,null,null,null,null,null,null,null,null,null,null,null,{"$f":"U39*F39","v":0}]
[null,"03.",null,null,null,null,null,null,null,null,null,null,null,null,null,null,null,null,null,null,null,null,0]
[null,"04.",null,null,null,null,null,null,null,null,null,null,null,null,null,null,null,null,null,null,null,null,0]
[null,"05.",null,null,null,null,null,null,null,null,null,null,null,null,null,null,null,null,null,null,null,null,0]
[null,"06.",null,null,null,null,null,null,null,null,null,null,null,null,null,null,null,null,null,null,null,null,0]
[null,"07.",null,null,null,null,null,null,null,null,null,null,null,null,null,null,null,null,null,null,null,null,0]
[null,"08.",null,null,null,null,null,null,null,null,null,null,null,null,null,null,null,null,null,null,null,null,0]
[null,"09.",null,null,null,null,null,null,null,null,null,null,null,null,null,null,null,null,null,null,null,null,0]
[null,"10.",null,null,null,null,null,null,null,null,null,null,null,null,null,null,null,null,null,null,null,null,0]
[]
[null,null,null,null,null,null,null,null,null,null,null,null,null,null,null,null,null,null,null,null,null,"Totalt pris för avropade produkter: ",{"$f":"SUM(W38:X47)","v":0}]
[]
[null,null,null,null,null,null,null,null,null,null,"Bilaga","Antal","Enhet"]
[null,"20.","Option 1.","Välj Option",null,null,null,null,null,null,false,null,null,null,null,null,null,null,null,null,null,null,{"$f":"U52*L52","v":0}]
[null,"21.","Option 2.","Välj Option",null,null,null,null,null,null,false,null,null,null,null,null,null,null,null,null,null,null,{"$f":"U53*L53","v":0}]
[null,"22.","Option 3.","Välj Option",null,null,null,null,null,null,false,null,null,null,null,null,null,null,null,null,null,null,{"$f":"U54*L54","v":0}]
[]
[null,null,null,null,null,null,null,null,null,null,null,null,null,null,null,null,null,null,null,null,null,"Totalt pris för optioner: ",{"$f":"SUM(W52:X54)","v":0}]
[]
[null,null,null,null,null,null,null,null,null,null,null,null,null,null,null,null,null,null,null,null,null,"Totalt pris (utvärderas): ",{"$f":"W49+W56","v":0}]
[]
[null,"Steg 3 - Grund för tilldelning av kontrakt",null,null,null,null,null,null,null,null,null,null,null,null,null,null,null,null,null,null,"OBS! Ej detsamma som kontraktssumma"]
[]
[null,"Ange tilldelningsgrund som kommer att tillämpas för att utse vinnande avropssvar. Obs! Om kravspecifikationen innehåller bör-krav väljer Ni alternativ 2 nedan.",null,null,null,null,null,null,null,null,"Instruktion:\nInnan kravspecifikationen fylls i måste du ange tilldelningsgrund, dvs. om tilldelning ska ske genom lägsta pris (endast ska-krav) eller med bör-krav som viktas mot priset i utvärderingen. Kravspecifikationen nedan kommer att anpassas efter ditt val."]
[]
[null,"Tilldelning av kontrakt sker utifrån:",null,null,null,null,null,null,null,null,null,null,null,null,null,null,false]
[null,"Välj grund för tilldelning….."]
[1]
[1,"Utvärderingsmodell"]
[1]
[1,"Ange den utvärderingsmodell som kommer att tillämpas för att utse vinnande avropssvar. \n",null,null,null,null,null,null,null,null,"Instruktion:\nObservera att de två föreslagna alternativen endast är exempel på vanligt förekommande utvärderings-modeller. Det är alltid den avropande organisationen som avgör om man vill använda sig av dem. "]
[1]
[1,"Utvärdering av :"]
[1,"Välj utvärdering….."]
[null,null,null,null,null,null,null,null,null,null,null,null,null,null,null,null,null,null,null,null,null,null,null,null,null,{"$f":"DpDwnTDV","v":"Välj grund för tilldelning….."},{"$f":"VALUE(IF(ISNUMBER(SEARCH(\"2\",Z73))=TRUE,\"2\",\"1\"))","v":1}]
[null,"Steg 4 - Kravspecifikation",null,null,null,null,null,null,null,null,null,null,null,null,"Kravuppfyllnad",null,null,null,null,null,null,null,null,null,null,{"$f":"DpDwnUtvddrop","v":"Välj utvärdering….."},{"$f":"\"Ut\"&IF(ISNUMBER(SEARCH(\"1\",Z74))=TRUE,\"1\",IF(ISNUMBER(SEARCH(\"2\",Z74))=TRUE,\"2\",IF(ISNUMBER(SEARCH(\"3\",Z74))=TRUE,\"3\")))","v":"UtFALSKT"}]
[]
[null,"Välj tjänst (endast de som valts i steg 2 ovan är möjliga)\nOBS! Varje tjänst kan väljas flera gånger.",null,"Välj krav ur kravkatalog \n(se även p. xxx i ramavtal)\nOBS! varje krav kan väljas flera gånger",null,"Precisera krav i fritext eller hänvisa till bilaga\n\n",null,null,null,{"$f":"IF(ISNUMBER(SEARCH(\"1\",AA73)),\"Endast ska-krav\",\"Välj typ av krav\n(ska/bör)\")","v":"Endast ska-krav"},{"$f":"IF(TillDelVal=1,\"\",\"Ange poäng-värde\n(vid bör-krav)\")","v":""},{"$f":"IF(TillDelVal=1,\"\",\"Ange prisavdrag (kr)\n(vid bör-krav)\")","v":""},null,null,"Uppfyller kravet?","Beskrivning av hur leverantören uppfyller kravet eller referera till bilaga"]
[null,"Välj tjänst",null,null,null,null,null,null,null,null,null,null,null,null,null,null,null,null,null,null,null,null,null,null,null,{"$f":"IF(AND(J77=\"Bör-krav\",K77<=0),TRUE,FALSE)","v":false},{"$f":"IF(J77=\"Ska-krav\",TRUE,FALSE)","v":false},null,null,null,null,null,{"$f":"IF(AND(J77=\"Ska-krav\",O77<>\"Ja\"),TRUE,FALSE)","v":false}]
[null,null,null,null,null,null,null,null,null,null,null,null,null,null,null,null,null,null,null,null,null,null,null,null,null,{"$f":"IF(AND(J78=\"Bör-krav\",L78<=0),TRUE,FALSE)","v":false},{"$f":"IF(J78=\"Ska-krav\",TRUE,FALSE)","v":false},null,null,null,null,null,{"$f":"IF(AND(J78=\"Ska-krav\",O78<>\"Ja\"),TRUE,FALSE)","v":false}]
[null,null,null,null,null,null,null,null,null,null,null,null,null,null,null,null,null,null,null,null,null,null,null,null,null,{"$f":"IF(AND(J79=\"Bör-krav\",L79<=0),TRUE,FALSE)","v":false},{"$f":"IF(J79=\"Ska-krav\",TRUE,FALSE)","v":false},null,null,null,null,null,false]
[null,null,null,null,null,null,null,null,null,null,null,null,null,null,null,null,null,null,null,null,null,null,null,null,null,false,false,null,null,null,null,null,false]
[null,null,null,null,null,null,null,null,null,null,null,null,null,null,null,null,null,null,null,null,null,null,null,null,null,false,false,null,null,null,null,null,false]
[null,null,null,null,null,null,null,null,null,null,null,null,null,null,null,null,null,null,null,null,null,null,null,null,null,false,false,null,null,null,null,null,false]
[null,null,null,null,null,null,null,null,null,null,null,null,null,null,null,null,null,null,null,null,null,null,null,null,null,false,false,null,null,null,null,null,false]
[null,null,null,null,null,null,null,null,null,null,null,null,null,null,null,null,null,null,null,null,null,null,null,null,null,false,false,null,null,null,null,null,false]
[null,null,null,null,null,null,null,null,null,null,null,null,null,null,null,null,null,null,null,null,null,null,null,null,null,false,false,null,null,null,null,null,false]
[null,null,null,null,null,null,null,null,null,null,null,null,null,null,null,null,null,null,null,null,null,null,null,null,null,false,false,null,null,null,null,null,false]
[1]
[1,null,null,null,null,null,null,null,null,null,"Max poäng för uppfyllda bör-krav","Max prisavdrag för uppfyllda bör-krav"]
[1,null,null,null,null,null,null,null,null,null,{"$f":"SUM(K77:K86)","v":0},{"$f":"SUM(L77:L86)","v":0},null,null,"Total erhållen poängsumma: ",{"$f":"SUMIF(O77:O86,\"Ja\",K77:K86)","v":0},null,null,"Totalt erhållet prisavdrag:",null,{"$f":"SUMIF(O77:O86,\"Ja\",L77:L86)","v":0},null,null,null,null,{"$f":"IF(OR(Z75:Z86),\"Nej\",\"Ja\")","v":"Ja"},{"$f":"IF(OR(AA75:AA86),\"Nej\",\"Ja\")","v":"Ja"},{"$f":"IF(OR(AB75:AB86),\"Ja\",\"Nej\")","v":{"$error":"#VALUE!"}}]
[]
[]
[]
["Ut1","Alt. 1. Summan av viktade poäng för pris och uppfyllda bör-krav, högsta slutsumma vinner.",null,null,null,null,null,null,null,null,null,null,null,null,"Sammanställning för detta avropssvar",null,"Fyll i det gula fältet efter att samtliga avropssvar inkommit!","När det gula fältet är ifyllt sker en automatisk poängberäkning. Lägst pris tilldelas maxpoäng (100) medan övriga priser tilldelas poäng i förhållande till det lägsta priset. Poängsumman för uppfyllda bör-krav multipliceras med angiven viktning och en slutlig poängsumma för detta avropssvar kommer att framgå av fältet längst ned. Denna slutliga poängsumma ligger till grund för tilldelningsbeslutet."]
["Ut1","Priset jämförs mellan avropssvaren. Poäng för uppfyllda bör-krav jämförs med möjlig maxpoäng. "]
["Ut1","Tilldelningskriterier"]
["Ut1","Ange kriterievikt för pris respektive bör-krav i tabellen nedan",null,null,null,null,null,null,null,null,null,null,null,null,null,"Viktning","Lägsta inkomna totalpris","Erhållen poäng för totalpris",null,"Viktade poäng per kriterium",null,"Slutlig poängsumma för detta avropssvar\n(utvärderas)"]
["Ut1","Pris",null,null,null,null,null,null,"Utvärdering av det totala sammanräknade priset: ",1,null,null,null,null,"Totalpris"]
["Ut1","Utvärderingskrav \n(bör-krav)",null,null,null,null,null,null,"Utvärdering av ställda bör-krav på avropade tjänster: ",null,null,null,null,null,{"$f":"W58","v":0},{"$f":"J97","v":1},0,{"$f":"IFERROR(Q98/O98*100,0)","v":0},null,{"$f":"IFERROR(R98*P98,\"\")","v":0},null,{"$f":"IFERROR(SUM(T98+T100),\"\")","v":""}]
["Ut1","Summa kriterievikt:",null,null,null,null,null,null,"(ska alltid summera till 100 %)",{"$f":"J97+J98","v":1},null,null,null,null,"Poängsumma för uppfyllda bör-krav"]
["Ut1",null,null,null,null,null,null,null,null,null,null,null,null,null,{"$f":"P89","v":0},{"$f":"J98","v":0},null,null,null,{"$f":"IFERROR(((O100/K89)*100)*P100,\"\")","v":""}]
["Ut1"]
["Ut1"]
[]
["Ut2","Alt. 2. Prisavdrag för uppfyllda bör-krav, lägsta utvärderingskostnad vinner. ",null,null,null,null,null,null,null,null,null,null,null,null,"Prisavdrag för uppfyllda bör-krav. ",null,"Summa utvärderingskostnad för detta avropssvar"]
["Ut2","Det erhållna prisavdraget för uppfyllda utvärderingskrav (bör-krav) dras ifrån det totala priset för avropade tjänster. Resultatet blir en utvärderingskostnad som ligger till grund för tilldelningsbeslutet.",null,null,null,null,null,null,null,null,null,null,null,null,{"$f":"U89","v":0},null,{"$f":"W58-O105","v":0}]
["Ut2",null,null,null,null,null,null,null,null,null,null,null,null,null,null,null,"OBS! Ej detsamma som kontraktssumma"]
["Ut2"]
["Ut2"]
[]
["Ut3","Alt. 3. Annan utvärderingsmodell (än de ovan föreslagna)"]
["Ut3"]
["Ut3","Avropande organisations beskrivning av den utvärderingsmodell som kommer att tillämpas (eller hänvisning till bilaga)"]
["Ut3"]
["Ut3"]
["Ut3"]
["Ut3"]
["Ut3"]
["Ut3"]
["Ut3"]
[]
[]
[null,"Steg 5 - Övriga uppgifter"]
[null,"Leveranstid"]
[null,"Ange ev leveranstid/er för produkterna/tjänsterna"]
[]
[]
[]
[]
[null,"Leveransvillkor (framgår av ramavtalets allmänna villkor)"]
[null,"Ev. precisering av leveransvillkor (om tillåtet enligt ramavtalet)"]
[]
[]
[]
[]
[null,"Leveransadress (om annan än ovan)"]
[null,"Ange ev leveransadress/er"]
[]
[]
[]
[]
[null,"Fakturaadress (om annan än ovan)"]
[null,"Ange ev fakturaadress/erna"]
[]
[]
[]
[]
[null,"Övrig information"]
[null,"Ange övriga specifika förutsättningar (tex ev budgetrestriktioner), förhållanden eller önskemål som kan vara viktiga för leverantören och som inte framgår på annan plats i dokumentet."]
[]
[]
[]
[]
[]
[]
[]
[]
[]
[]
[]
[null,"Bilagor från avropande organisation (kontraktshandlingar framgår av flik 3)",null,null,null,null,null,null,null,null,null,null,null,null,"Bilagor från leverantören"]
[null,"Specificera ev. bilagor som medföljer denna avropsförfrågan",null,null,null,null,null,null,null,null,null,null,null,null,"Specificera ev. bilagor som medföljer detta avropssvar"]
[]
[]
[]
[]
[]
[null,null,null,null,null,null,null,null,null,null,null,null,null,null,"Leverantören har lämnat begärda prisuppgifter som gäller för offererade produkter/tjänster enligt ställda krav samt accepterar i övrigt kraven i avropsförfrågan och är införstådd med att samtliga lämnade uppgifter i avropssvaret är bindande\n"]
[]
[null,"OBS! Spara inte blanketten i PDF-format. Då kan inte leverantörerna fylla i den. Lås blanketten med \"låsknappen\" nedan innan ni skickar blanketten till leverantörerna.",null,null,null,null,null,null,null,null,null,null,null,null,{"$f":"\"Leverantören intygar att avropssvaret är giltigt minst den tid som avropande organisation angett ovan. \"&CHAR(10)&\"(\"&TEXT(D27,\"ÅÅÅÅ-MM-DD\")&\")\"","v":"Leverantören intygar att avropssvaret är giltigt minst den tid som avropande organisation angett ovan. \n(1900-01-00)"}]
[null,"Låsning av avropsblanketten",null,null,null,null,null,null,null,null,null,null,null,null,"Ort, datum"]
[null,"Detta görs genom att klicka på knappen nedanför samt ange ett lösenord. Om det visat sig att man glömt fylla i någon uppgift så kan det vara bra att kunna låsa upp blanketten. Klicka då på samma knapp. Observera att lösenordet inte kan bestå av enbart siffror.",null,null,null,null,null,null,null,null,null,null,null,null,null,null,null,null,null,null,null,null,null,null,null,null,null,null,null,null,null,null,{"$f":"IF(O171=0,TRUE,FALSE)","v":true}]
[]
[null,null,null,null,null,null,null,null,null,null,null,null,null,null,"Namn, befattning (behörig företrädare för leverantören)"]
[]
[null,null,null,null,null,null,null,null,null,null,null,null,null,null,null,null,null,null,null,null,null,null,null,null,null,null,null,null,null,null,null,null,{"$f":"IF(O174=0,TRUE,FALSE)","v":true}]
[]
[null,null,null,null,null,null,null,null,null,null,null,null,null,null,null,null,null,null,{"$f":"IF(LarmStatus,\"Minst ett av de obligatoriska kraven är inte ifyllda eller besvarde med Nej\",\"\")","v":"Minst ett av de obligatoriska kraven är inte ifyllda eller besvarde med Nej"}]

{"sheet":"3 Avtalstecknande","index":2,"n_rows":37,"n_cols":4,"rows_kept":37,"cut":false,"hidden":false,"merged":[[5,1,5,3],[38,1,38,3],[39,1,39,3],[40,1,40,3],[7,1,7,3],[9,1,9,3],[11,1,11,3],[14,1,14,3],[15,1,15,3],[41,1,41,3],[22,1,22,3],[37,1,37,3],[17,1,17,3],[18,1,19,3]]}
[null,null,null,{"$f":"\"Avrop nr: \"&'2 Specifikation'!E15","v":"Avrop nr: xxxx"}]
[]
[]
[]
[null,"Kontrakt"]
[null,{"$f":"\"Detta kontrakt reglerar avrop från ramavtalsområde \"&'1 Försättssida'!A14&\", \"&'1 Försättssida'!A16","v":"Detta kontrakt reglerar avrop från ramavtalsområde stora konferenser och möten, 96-xx-201x"}]
[null,"Kontraktets omfattning"]
[null,"Leveransens omfattning och villkor framgår av Kontraktet med tillhörande bilagor samt Ramavtalet. Om handlingarna innehåller motstridiga uppgifter ska handlingarna gälla i nedan nämnd ordning om inte omständigheterna uppenbarligen föranleder annat."]
[null,"1. Skriftliga ändringar och tillägg till Kontrakt"]
[null,"2. Kontrakt med bilagor, inkl. Allmänna villkor"]
[null,"3. Eventuellt kompletterande Avropsförfrågan"]
[null,"4. Avropsförfrågan med bilagor "]
[null,"5. Eventuella tillåtna kompletteringar av Avropssvar"]
[null,"6. Avropssvar med bilagor"]
[]
[null,"Innehåller leverantörens avropssvar uppgifter som inte efterfrågats i avropsblanketten är dessa uppgifter giltiga endast om en skriftlig överenskommelse träffas särskilt angående detta. Hänvisning till leverantörens egna allmänna villkor eller motsvarande är endast giltiga om en särskild överenskommelse avseende detta tecknas."]
[]
[null,"Särskilda kontraktsvillkor, säkerhetsskyddsavtal etc. (alternativt enl separat bilaga) Se Allmänna villkor för tillåtna kompletteringar! "]
[]
[]
[]
[null,"Underskrift"]
[null,"Underskriften avser ett kontraktstecknande. Efter undertecknande av bägge parter utgör denna blankett tillsammans med ramavtalets villkor enligt ovan ett kontrakt mellan parterna.\n\nDetta kontrakt har upprättats i två exemplar varav parterna tagit var sitt."]
[]
[null,"Avropande organisation",null,"Leverantör"]
[null,{"$f":"'2 Specifikation'!B9","v":0},null,{"$f":"'2 Specifikation'!O9","v":0}]
[null,"Org.nr.",null,"Org.nr."]
[null,{"$f":"'2 Specifikation'!H9","v":0},null,{"$f":"'2 Specifikation'!U9","v":0}]
[]
[null,"Ort, datum",null,"Ort, datum"]
[]
[]
[null,"Namn, befattning \n(behörig företrädare för avropande organisation)",null,"Namn, befattning \n(behörig företrädare för leverantören)"]
[]
[]
[]
[null,"Eventuella bilagor till kontraktet"]

{"sheet":"Admin","index":3,"n_rows":52,"n_cols":17,"rows_kept":52,"cut":false,"hidden":true,"merged":[]}
[null,null,null,null,null,null,null,null,null,"ResVarTja"]
[null,null,null,{"$f":"C5","v":"75-149 personer"},{"$f":"C6","v":"> 150 personer"},{"$f":"C7","v":0},{"$f":"C8","v":0},{"$f":"C9","v":0},{"$f":"C10","v":0},{"$f":"USRDelområde","v":"> 150 personer"}]
[null,null,"TblDelområde","Välj tjänst",{"$f":"$D$3","v":"Välj tjänst"},{"$f":"$D$3","v":"Välj tjänst"},{"$f":"$D$3","v":"Välj tjänst"},{"$f":"$D$3","v":"Välj tjänst"},{"$f":"$D$3","v":"Välj tjänst"},{"$f":"INDEX(D3:I3,MATCH(J$2,D$2:I$2,0))","v":"Välj tjänst"}]
[null,null,"Välj antal deltagare","Logi inkl. frukost","Logi inkl. frukost",null,null,null,null,{"$f":"INDEX(D4:I4,MATCH(J$2,D$2:I$2,0))","v":"Logi inkl. frukost"}]
[null,null,"75-149 personer","Förmiddagskaffe","Förmiddagskaffe",null,null,null,null,"Förmiddagskaffe"]
[null,null,"> 150 personer","Lunch","Lunch",null,null,null,null,"Lunch"]
[null,null,null,"Eftermiddagskaffe","Eftermiddagskaffe",null,null,null,null,"Eftermiddagskaffe"]
[null,null,null,"Middag","Middag",null,null,null,null,"Middag"]
[null,null,null,"Konferenslokal","Konferenslokal",null,null,null,null,"Konferenslokal"]
[null,null,null,"Grupprum","Grupprum",null,null,null,null,"Grupprum"]
[null,null,null,"Övrigt","Övrigt",null,null,null,null,"Övrigt"]
[null,null,null,null,null,null,null,null,null,0]
[null,null,null,null,null,null,null,null,null,0]
[null,null,null,null,null,null,null,null,null,0]
[null,null,null,null,null,null,null,null,null,0]
[]
[null,null,null,"Optioner",null,null,null,null,null,"ResOpt"]
[null,null,null,"Välj Option",{"$f":"$D$18","v":"Välj Option"},{"$f":"$D$18","v":"Välj Option"},{"$f":"$D$18","v":"Välj Option"},{"$f":"$D$18","v":"Välj Option"},{"$f":"$D$18","v":"Välj Option"},{"$f":"INDEX(D18:I18,MATCH(J$2,D$2:I$2,0))","v":"Välj Option"}]
[null,null,null,"Delområde 1/Option 2","Delområde 2/Option 2","Delområde 3/Option 2","Delområde 4/Option 2","Delområde 5/Option 2","Delområde 6/Option 2",{"$f":"INDEX(D19:I19,MATCH(J$2,D$2:I$2,0))","v":"Delområde 2/Option 2"}]
[null,null,null,"Delområde 1/Option 3","Delområde 2/Option 3","Delområde 3/Option 3","Delområde 4/Option 3","Delområde 5/Option 3","Delområde 6/Option 3",{"$f":"INDEX(D20:I20,MATCH(J$2,D$2:I$2,0))","v":"Delområde 2/Option 3"}]
[null,null,null,"Delområde 1/Option 4","Delområde 2/Option 4","Delområde 3/Option 4","Delområde 4/Option 4","Delområde 5/Option 4","Delområde 6/Option 4",{"$f":"INDEX(D21:I21,MATCH(J$2,D$2:I$2,0))","v":"Delområde 2/Option 4"}]
[null,null,null,"Delområde 1/Option 5","Delområde 2/Option 5","Delområde 3/Option 5","Delområde 4/Option 5","Delområde 5/Option 5","Delområde 6/Option 5",{"$f":"INDEX(D22:I22,MATCH(J$2,D$2:I$2,0))","v":"Delområde 2/Option 5"}]
[]
[null,null,null,null,null,null,null,null,null,"Region"]
[null,null,null,"TblGrundTilldeln",null,"Tbl krav",null,"TblEnhet",null,"Multiregionalt"]
[null,null,null,"Välj grund för tilldelning…..",null,"Välj krav",null,"Styck",null,"Blekinge län"]
[null,null,null,"Alt. 1. Lägsta pris (endast ska-krav och pris)",null,"Kvalitet",null,"Timmar",null,"Dalarnas län"]
[null,null,null,"Alt. 2. Ekonomiskt mest fördelaktiga (priset i relation till bör-krav)",null,"Miljö",null,"Dagar",null,"Gotlands län"]
[null,null,null,null,null,"Tillgänglighet ",null,"Nätter",null,"Gävleborgs län"]
[null,null,null,"TblUtVrd",null,"Avbeställningsregler ",null,"Bilaga",null,"Hallands län"]
[null,null,null,"Välj utvärdering…..",null,"Övriga tjänster",null,null,null,"Jämtlands län"]
[null,null,null,"Alt. 1. Relativ viktning - summan av viktade poäng för pris och uppfyllda bör-krav",null,"Övrigt",null,null,null,"Jönköpings län"]
[null,null,null,"Alt. 2. Mervärdesmodell - prisavdrag för uppfyllda bör-krav",null,null,null,null,null,"Kalmars län"]
[null,null,null,"Alt. 3. Annan utvärderingsmodell",null,null,null,null,null,"Kronobergs län"]
[null,null,null,null,null,null,null,null,null,"Norrbottens län"]
[null,null,null,null,null,null,null,null,null,"Skånes län"]
[null,null,null,null,null,null,null,null,null,"Stockholms län"]
[null,null,null,null,null,null,null,null,null,"Södermanlands län"]
[null,null,null,null,null,null,null,null,null,"Uppsala län"]
[null,null,null,null,null,null,null,null,null,"Värmlands län"]
[null,null,null,null,null,null,null,null,null,"Västerbottens län"]
[null,null,null,null,null,null,null,null,null,"Västernorrlands län"]
[null,null,null,null,null,null,null,null,null,"Västmanlands län"]
[null,null,null,null,null,null,null,null,null,"Västra Götalands län"]
[null,null,null,null,null,null,null,null,null,"Örebro län"]
[null,null,null,null,null,null,null,null,null,"Östergötlands lön"]
[]
[null,null,"TblLeverantörer"]
[null,null,"Juridiskt Namn","Förvaltningens avtalsnummer ","Organisations-nummer","Adress","Postnummer","Postadress","Telefon Växel","Telefon kundtjänst","Hemsida","Kontaktperson ","Telefon","E-post kontaktperson","Befattning Kontaktperson","Fax","E-post Gruppbrevlåda"]
[]
[null,null,{"$f":"\"Välj \"&C49","v":"Välj Juridiskt Namn"},{"$f":"D49","v":"Förvaltningens avtalsnummer "},"Organisations-nummer","Adress","Postnummer","Postadress","Telefon Växel","Telefon kundtjänst","Hemsida","Kontaktperson ","Telefon","E-post kontaktperson","Befattning Kontaktperson","Fax","E-post Gruppbrevlåda"]
[null,null,"Välj Juridiskt Namn 2","Förvaltningens avtalsnummer  2","Organisations-nummer 2","Adress 2","Postnummer 2","Postadress 2","Telefon Växel 2","Telefon kundtjänst 2","Hemsida 2","Kontaktperson  2","Telefon 2","E-post kontaktperson 2","Befattning Kontaktperson 2","Fax 2","E-post Gruppbrevlåda 2"]

{"sheet":"SysAdmin","index":4,"n_rows":14,"n_cols":3,"rows_kept":14,"cut":false,"hidden":true,"merged":[]}
["LockStatus",false]
["UKey","Förvaltning21"]
["pkey","Förvaltning21"]
["Wkey","Förvaltning21","RGB"]
["YColor"," ","255, 255, 153"]
[null,null,"204, 255, 255"]
[null,null,"150, 150, 150"]
[null,null,"204, 255, 204"]
[null,null,"250, 191, 143"]
[]
[null,2,{"$f":"INDEX(C12:C14,B11)","v":"Avroppsblanketten är nu upplåst, klicka här för att låsa avropsblanketten."}]
[null,null,"Adminläge! Klicka här för att låsa vita celler."]
[null,null,"Avroppsblanketten är nu upplåst, klicka här för att låsa avropsblanketten."]
[null,null,"Avroppsblanketten är nu låst, klicka här för att låsa upp avropsblanketten."]